Cogmind - Beta 12 @@@ ROGUE MODE // 2023.10.01 @ 22:26:52 Player: Figgis Result: Self-destructed Performance ------------- Evolutions (2) 1000 Regions Visited (4) 800 Robots Destroyed (52) 260 Value Destroyed (1544) 1544 Prototype IDs (7) 140 Alien Tech Used (0) 0 Bonus (89) 89 TOTAL SCORE: 3833 Bonus ------- High Alert Combat Kills 89 Cogmind --------- Core Integrity 503/550 Matter 159/300 Energy 177/265 System Corruption 0% Temperature Cool (19) Movement Walking (190) Ox1 Location -8/Materials Parts ------- > --- POWER (1) -------- Improved Ion Engine > --- PROPULSION (4) --- Aluminum Leg Aluminum Leg Aluminum Leg Aluminum Leg > --- UTILITY (4) ------ Large Storage Unit Bomb Drone Bay (3/16) > --- WEAPON (2) ------- Heavy Particle Gun Minigun > --- INVENTORY (15) --- Aluminum Leg Aluminum Leg Signal Interpreter EM Shotgun Heavy Particle Gun Heavy Assault Rifle Peak State ------------ > --- POWER ------------ Heavy Ion Engine > --- PROPULSION ------- Aluminum Leg Aluminum Leg Aluminum Leg Aluminum Leg > --- UTILITY ---------- Large Storage Unit Utility Shielding Bomb Drone Bay > --- WEAPON ----------- Heavy Particle Gun Heavy Particle Gun > --- INVENTORY -------- Improved Ion Engine Aluminum Leg Aluminum Leg Aluminum Leg Signal Interpreter EM Shotgun Heavy Assault Rifle [Rating: 32] Favorites ----------- Power Heavy Ion Engine Engine Heavy Ion Engine Propulsion Aluminum Leg Leg Aluminum Leg Utility Large Storage Unit Device ECM Suite Storage Large Storage Unit Protection Utility Shielding Weapon Heavy Particle Gun Energy Gun Heavy Particle Gun Ballistic Gun Assault Rifle Build | -11 -10 -9 -9 -8 ------- Run | Jun Mat Mat Min Mat Slots Evolved 4 | . . 2 . 2 Power . | . . . . . Propulsion 2 | . . 2 . . Utility 2 | . . . . 2 Weapon . | . . . . . Parts Attached 45 | 6 5 19 3 12 Power 5 | 1 . 2 1 1 Engine 5 | 1 . 2 1 1 Core . | . . . . . Reactor . | . . . . . Propulsion 18 | 2 1 11 2 2 Treads . | . . . . . Leg 18 | 2 1 11 2 2 Wheel . | . . . . . Hover . | . . . . . Flight . | . . . . . Utility 8 | 1 3 2 . 2 Device 3 | . 1 1 . 1 Storage 3 | 1 1 1 . . Processor . | . . . . . Hackware . | . . . . . Protection 2 | . 1 . . 1 Artifact . | . . . . . Weapon 14 | 2 1 4 . 7 Energy Gun 11 | 1 . 4 . 6 Energy Cannon . | . . . . . Ballistic Gun 3 | 1 1 . . 1 Ballistic Cannon . | . . . . . Launcher . | . . . . . Special Weapon . | . . . . . Impact Weapon . | . . . . . Slashing Weapon . | . . . . . Piercing Weapon . | . . . . . Special Melee Weapon . | . . . . . Unidentified Prototypes 6 | . . 3 . 3 Parts Lost 12 | . 1 4 5 2 Power 2 | . . . 1 1 Propulsion 7 | . 1 4 2 . Utility 2 | . . . 1 1 Weapon 1 | . . . 1 . Highest Loss Streak 4 | . 1 1 4 2 To Critical Strikes . | . . . . . Average Slot Usage (%) 97 | . 98 98 97 87 Engine 11 | . 14 11 10 8 Leg 36 | . 27 43 43 34 Device 9 | . 8 11 10 9 Storage 11 | . 14 11 11 9 Protection 2 | . 4 . . 8 Energy Gun 12 | . 4 17 21 14 Ballistic Gun 10 | . 23 4 . 3 Naked Turns . | . . . . . Heaviest Build 43 | 13 21 35 35 43 Greatest Support 40 | 20 20 40 40 40 Greatest Overweight (x) 4 | 4 1 1 1 1 Average Overweight (x) . | . . . . . Largest Inventory Capacity 15 | 8 10 15 15 15 Average Capacity 11 | 7 9 13 15 15 Most Carried 15 | 4 10 15 15 11 Average Carried 9 | 2 6 12 14 7 Final Capacity 15 | 8 10 15 15 15 Final Carried 15 | 2 10 15 12 6 Class Distribution -------------------- 52% | Mutant 47% | Scavenger-Mutant Dominant Class ---------------- Mutant | -10/Materials Scavenger-Mutant | -9/Materials Scavenger-Mutant | -9/Mines Scavenger-Mutant | -8/Materials Resources | -11 -10 -9 -9 -8 ----------- Run | Jun Mat Mat Min Mat Matter Collected 790 | 185 321 274 10 . Remotely . | . . . . . Salvage Created 1988 | . 578 1304 106 . Parts 128 | . 27 92 9 . Haulers Intercepted . | . . . . . Recyclers Shooed 2 | . 2 . . . Parts Field Recycled . | . . . . . Retrieved Matter . | . . . . . Parts Self-Destructed . | . . . . . Prevented . | . . . . . Kills | -11 -10 -9 -9 -8 ------- Run | Jun Mat Mat Min Mat Combat Hostiles Destroyed 40 | . 9 29 2 . Guns 40 | . 9 29 2 . Classes Destroyed 7 | . 4 3 . . Worker 1 | . . 1 . . Recycler 3 | . 3 . . . Watcher 8 | . 3 5 . . Swarmer 7 | . 3 4 . . Grunt 21 | . 6 15 . . Brawler 1 | . . 1 . . Sentry 11 | . . 9 2 . Best Kill Streak 9 | . 3 9 2 . Combat Bots Only 8 | . 3 8 2 . Max Kills in Single Turn 2 | . 1 2 1 . Gunslinging 1 | . . 1 . . Exploded . | . . . . . Melee . | . . . . . Uniques/NPCs Destroyed . | . . . . . Combat | -11 -10 -9 -9 -8 -------- Run | Jun Mat Mat Min Mat Damage Taken 2522 | . 354 1009 495 664 Core 286 | . 82 102 55 47 Absorbed by Shields . | . . . . . Redirected to Shielding 50 | . 3 . . 47 Regen/Repaired (Parts) 185 | . . . . 185 Core Remaining (%) 75 | 100 67 . 60 . Volleys Fired 147 | . 59 74 10 4 Largest 2 | . 2 2 2 2 Hottest 110 | . 60 110 110 80 Shots Fired 293 | . 117 148 20 8 Gun 293 | . 117 148 20 8 Cannon . | . . . . . Launcher . | . . . . . Special . | . . . . . Kinetic 99 | . 67 28 . 4 Thermal 194 | . 50 120 20 4 Explosive . | . . . . . Electromagnetic . | . . . . . Robot Hit Streak 13 | . 8 13 10 5 Robot Miss Streak 5 | . 5 3 4 1 Penetration Max . | . . . . . Secondary Targets 2 | . . 1 1 . Max Gunslinging Chain 1 | . . 1 1 . Shots Hit Robots 198 | . 72 106 14 6 Core Hits 76 | . 25 45 5 1 Critical Kills . | . . . . . Critical Parts Destroyed . | . . . . . Critical Strikes 3 | . . 3 . . Burn 3 | . . 3 . . Melee Attacks . | . . . . . Impact . | . . . . . Slashing . | . . . . . Piercing . | . . . . . Sneak Attacks . | . . . . . Combat Hostiles . | . . . . . Follow-up Attacks . | . . . . . Damage Inflicted 3189 | . 905 1915 264 105 Guns 3189 | . 905 1915 264 105 Cannons . | . . . . . Explosions . | . . . . . Melee . | . . . . . Ramming . | . . . . . Kinetic 818 | . 489 261 . 68 Thermal 2371 | . 416 1654 264 37 Explosive . | . . . . . Electromagnetic . | . . . . . Impact . | . . . . . Slashing . | . . . . . Piercing . | . . . . . Highest Corruption 1 | . . 1 1 . Average Corruption 1 | . . 1 1 . Corruption Purged . | . . . . . Corruption Blocked . | . . . . . Effects 6 | . . 4 2 . Message Errors 1 | . . . 1 . Matter Fused 1 | . . 1 . . Heat Flow Errors 2 | . . 1 1 . Data Loss (minor) 1 | . . 1 . . Alerts 1 | . . 1 . . Overload Shots . | . . . . . Overflow Damage . | . . . . . Projectiles . | . . . . . Explosions . | . . . . . Melee . | . . . . . Knockbacks . | . . . . . Impact . | . . . . . Kinetic . | . . . . . Secondary . | . . . . . Self-Inflicted Damage . | . . . . . Shots . | . . . . . Rammed . | . . . . . Targets Rammed . | . . . . . Kicked . | . . . . . Crushed . | . . . . . Highest Temperature 345 | . 75 345 181 44 Average Temperature 62 | . 36 79 46 20 Received Heat Transfer 726 | . 156 381 162 27 Siege Activations . | . . . . . Robots Corrupted . | . . . . . Combat Hostiles . | . . . . . Parts Fried . | . . . . . Impact Corruptions . | . . . . . Robots Melted . | . . . . . Combat Hostiles . | . . . . . Parts Melted 9 | . 1 7 1 . Heat Transferred 4884 | . 925 3367 518 74 Parts Sabotaged . | . . . . . Parts Stolen . | . . . . . Parts Stripped . | . . . . . Power Chain Reactions . | . . . . . Missiles Intercepted . | . . . . . Alert | -11 -10 -9 -9 -8 ------- Run | Jun Mat Mat Min Mat Peak Influence 590 | . 197 590 275 13 Initial 229 | . . . 229 13 Average 162 | . 37 297 231 5 Maximum Alert Level 2 | . . 2 1 . Low Security (%) 61 | 100 100 32 8 100 Level 1 23 | . . 32 91 . Level 2 14 | . . 34 . . Level 3 . | . . . . . Level 4 . | . . . . . Level 5 . | . . . . . High Security . | . . . . . Max Security . | . . . . . Squads Dispatched 6 | . 1 2 . 3 Investigation 1 | . . 1 . . Extermination . | . . . . . Reinforcement 5 | . 1 1 . 3 Assault . | . . . . . Garrison . | . . . . . Intercept . | . . . . . Searches Triggered . | . . . . . Construction Impeded . | . . . . . Haulers Reinforced . | . . . . . Active Scanning Responses . | . . . . . Cargo Convoy Interrupts . | . . . . . Stealth | -11 -10 -9 -9 -8 --------- Run | Jun Mat Mat Min Mat Distress Signals 6 | . 2 3 . 1 Communications Jammed . | . . . . . Distress Signals . | . . . . . Times Spotted 75 | . 18 46 4 7 Peak Tracking Total 10 | . 3 6 2 10 Tactical Retreats 7 | . 2 5 . . Traps | -11 -10 -9 -9 -8 ------- Run | Jun Mat Mat Min Mat Traps Triggered 1 | . . 1 . . Indirectly . | . . . . . Trap Hack Attempts . | . . . . . Triggered . | . . . . . Disarmed 6 | . 6 . . . Reprogrammed . | . . . . . Reused . | . . . . . Traps Extracted . | . . . . . Installed . | . . . . . Triggered . | . . . . . Machines | -11 -10 -9 -9 -8 ---------- Run | Jun Mat Mat Min Mat Machines Disabled 3 | . . 3 . . Max in Single Turn 1 | . . 1 . . Machines Repaired . | . . . . . Machines Sabotaged . | . . . . . Overloaded Fab Kills . | . . . . . Hacking | -11 -10 -9 -9 -8 --------- Run | Jun Mat Mat Min Mat Machines Accessed 18 | . 7 8 1 2 Terminals 12 | . 5 6 . 1 Fabricators . | . . . . . Repair Stations 2 | . 1 . . 1 Recycling Units 2 | . 1 1 . . Scanalyzers 1 | . . 1 . . Garrison Access . | . . . . . Total Hacks 48 | . 17 22 1 8 Successful 29 | . 9 13 1 6 Failed 19 | . 8 9 . 2 Catastrophic 1 | . . 1 . . Database Lockouts . | . . . . . Manual . | . . . . . Terminals 35 | . 14 19 . 2 Fabricators . | . . . . . Repair Stations 8 | . 2 . . 6 Recycling Units 2 | . 1 1 . . Scanalyzers 2 | . . 2 . . Garrison Access . | . . . . . Terminal Hacks 19 | . 7 10 1 1 Record 3 | . . 3 . . Robot Analysis 1 | . 1 . . . Prototype ID Bank 1 | . . 1 . . Open Door 1 | . . . 1 . Alert Level 1 | . . 1 . . Unreport Threat 3 | . . 2 . 1 Locate Traps 1 | . 1 . . . Disarm Traps 1 | . 1 . . . Security Status 1 | . 1 . . . Surveillance Status 1 | . 1 . . . Investigation Status 1 | . . 1 . . Zone Layout 4 | . 2 2 . . Fabricator Hacks . | . . . . . Repair Station Hacks 6 | . 1 . . 5 Scan Component 3 | . 1 . . 2 Repair 2 | . . . . 2 Refit 1 | . . . . 1 Recycling Unit Hacks 2 | . 1 1 . . Report Inventory 2 | . 1 1 . . Scanalyzer 2 | . . 2 . . Insert Component 1 | . . 1 . . Analyze 1 | . . 1 . . Garrison Access Hacks . | . . . . . Unauthorized Hacks . | . . . . . Terminals . | . . . . . Fabricators . | . . . . . Repair Stations . | . . . . . Recycling Units . | . . . . . Scanalyzers . | . . . . . Garrison Access . | . . . . . Data Cores Recovered . | . . . . . Used . | . . . . . Hacking Detections 16 | . 7 7 . 2 Full Trace Events 1 | . . 1 . . Feedback Events . | . . . . . Feedback Blocked . | . . . . . Robot Schematics Acquired . | . . . . . Robots Built . | . . . . . Authchips . | . . . . . Time . | . . . . . Total Robot Build Rating . | . . . . . Part Schematics Acquired 1 | . . 1 . . Parts Built . | . . . . . Authchips . | . . . . . Time . | . . . . . Total Part Build Rating . | . . . . . Parts Repaired 2 | . . . . 2 Time 86 | . . . . 86 Parts Recycled . | . . . . . Recycled Matter . | . . . . . Retrieved Matter . | . . . . . Retrieved Components . | . . . . . Parts Scanalyzed 1 | . . 1 . . Part Schematics Acquired 1 | . . 1 . . Parts Damaged . | . . . . . Bothacking | -11 -10 -9 -9 -8 ------------ Run | Jun Mat Mat Min Mat Used RIF Installer . | . . . . . Robots Hacked . | . . . . . Non-combat . | . . . . . Combat . | . . . . . Robot Hacks Applied . | . . . . . Relay Couplers Released . | . . . . . Fabnet Peak Effective % . | . . . . . Robots Rewired . | . . . . . Allies Hacked . | . . . . . Hacks Repelled . | . . . . . Allies | -11 -10 -9 -9 -8 -------- Run | Jun Mat Mat Min Mat Total Allies . | . . . . . Largest Group . | . . . . . Highest-Rated Group . | . . . . . Highest-Rated Ally . | . . . . . Total Orders . | . . . . . Ally Attacks 13 | . . . . 13 Total Damage . | . . . . . Kills . | . . . . . Allies Corrupted . | . . . . . Allies Melted . | . . . . . Intel | -11 -10 -9 -9 -8 ------- Run | Jun Mat Mat Min Mat Robot Analysis Total 1 | . 1 . . . Derelict Logs Recovered 1 | . . . 1 . Drone Launches 16 | . . . . 16 Drone Recoveries 3 | . . . . 3 Exploration | -11 -10 -9 -9 -8 ------------- Run | Jun Mat Mat Min Mat Turns Passed 3723 | 57 1388 1523 435 320 Spaces Moved 2029 | 34 711 858 322 104 Core 19 | 19 . . . . Treads . | . . . . . Legs 2010 | 15 711 858 322 104 Wheels . | . . . . . Hover . | . . . . . Flight . | . . . . . Fastest Speed 50 | 50 120 120 120 120 Average Speed 139 | 127 160 123 122 187 Slowest Speed 250 | 250 190 190 190 190 Overloaded Moves . | . . . . . Propulsion Burnouts . | . . . . . Robots Hopped . | . . . . . Cave-ins Triggered . | . . . . . Exploration Rate (%) 51 | 4 97 66 57 32 Regions Visited 4 Branch Regions 1 Pre-discovered Areas . | . . . . . Known Exits Taken . | . . . . . Unknown Exits Taken 4 | 1 1 1 1 . Scrap Searched 1 | . . . 1 . Spaces Dug . | . . . . . Terrain Destroyed . | . . . . . Melee . | . . . . . Projectile . | . . . . . AOE . | . . . . . Terrain Rammed . | . . . . . Walls Destroyed . | . . . . . Machines Disabled . | . . . . . Actions | -11 -10 -9 -9 -8 --------- Run | Jun Mat Mat Min Mat Total 2627 | 47 842 1173 344 221 Wait 344 | . 54 191 7 92 Move 2025 | 33 710 857 321 104 Hop . | . . . . . Pick Up 45 | 8 12 19 1 5 Fast Attach 1 | . . 1 . . Attach 29 | 6 3 8 3 9 Detach . | . . . . . Swap 15 | . 2 10 . 3 Drop 21 | . 2 13 2 4 Fire 147 | . 59 74 10 4 Melee . | . . . . . Ram . | . . . . . Kick . | . . . . . Crush . | . . . . . Escape Stasis . | . . . . . Rewire . | . . . . . Trap . | . . . . . Miscellaneous . | . . . . . Route ------- -11/Junkyard -10/Materials (discovered 5 exits: *Mat x3 / [*Min x2]) -9/Materials (discovered 5 exits: *Mat x2 / *Min / [*Sto x2]) -9/Mines (discovered 2 exits: *Mat x2) -8/Materials (discovered 1 exit: [*Fac]) History --------- Turn | Location | Event 4 | -11/Junkyard | Discovered new exit (range 16) 58 | -11/Junkyard | Entered Materials 313 | -10/Materials | Discovered new exit (range 16) 318 | -10/Materials | Build established: Mutant 856 | -10/Materials | Discovered new exit (range 12) 1095 | -10/Materials | Discovered new exit (range 16) 1095 | -10/Materials | Discovered new exit (range 8) 1383 | -10/Materials | Discovered new exit (range 15) 1446 | -10/Materials | Entered another Materials area 1446 | -9/Materials | Evolved 2 slots: Propulsion x2 1544 | -9/Materials | Discovered new exit (range 10) 2079 | -9/Materials | Destroyed 8 combat bots 2095 | -9/Materials | Discovered new exit (range 11) 2615 | -9/Materials | Build established: Scavenger-Mutant 2616 | -9/Materials | Discovered new exit (range 16) 2697 | -9/Materials | Discovered new exit (range 8) 2840 | -9/Materials | Discovered new exit (range 10) 2969 | -9/Materials | Entered Mines 3042 | -9/Mines | YI-UF0 nonchalantly dropped a Grenade Launcher on the ground 3131 | -9/Mines | Found the Drone Emporium 3139 | -9/Mines | Found Prototype Device 3167 | -9/Mines | Discovered new exit (range 5) 3321 | -9/Mines | Discovered new exit (range 7) 3404 | -9/Mines | Entered Materials 3404 | -8/Materials | Evolved 2 slots: Utility x2 3405 | -8/Materials | Identified Bomb Drone Bay 3427 | -8/Materials | Lost 4 parts (2n1u1w) 3543 | -8/Materials | Repaired Hvy. Particle Gun 3572 | -8/Materials | Repaired Aluminum Leg 3685 | -8/Materials | Discovered new exit (range 44) 3724 | -8/Materials | Self-destructed Last Messages --------------- 03695_ G-47 Trooper destroyed. 03696_ Bomb Drone detonates. 03696_ Bomb Drone destroyed. 03696_ T-07 Excavator destroyed. 03696_ A-02 Transporter destroyed. 03696_ Bomb Drone retrieved by Bomb Drone Bay. 03697_ The unstable cave ceiling collapses. 03697_ Aluminum Leg blasted off. 03698_ K-01 Serf collects debris. 03699_ H-61 Shepherd calls for reinforcements. 03699_ ALERT: Hostile activity reported, dispatching reinforcements to area. 03700_ The unstable cave ceiling collapses. 03701_ K-01 Serf collects debris. 03703_ Knocked back. 03704_ K-01 Serf collects debris. 03705_ Knocked back. 03707_ Utility Shielding destroyed. 03707_ Hvy. Ion Engine destroyed. 03709_ Knocked back. Map ----- +----------------------------------------------------+ | ???????#"R # #???????????????????????????? | | ???????#""" """ # ##########??????????????????? | | ???????# """ # # / T #??????????????????? | | ???????# """ # # #??????????????????? | | ???????# # # #??????????????????? | | ???????# # # #??????????????????? | | ???????#######+### + #??????????????????? | | ??????????# # """ #??????????????????? | | ??????????# # """ #??????????????????? | | ??????????# # """ #??????????????????? | | ??????????# # #??????????????????? | | ########### ##########??????????????????? | | """"" # #????????????????????? | | """"" + """ #????????????????????? | | ########### """"" # """ #????????????????????? | | ??????????# """"" # """ #????????????????????? | | ??????????# """"" # #????????????????????? | | ??????????# """"" # #????????????????????? | | ??????????# """"" ########????????????????????? | | ??????????# #???????????????????????????? | | ??????????# ! ########????????????????????? | | ?????????## # """ #????????????????????? | | ?????????# % # """ #????????????????????? | | ????????## ! # """ #????????????????????? | | ????????# ! # #????????????????????? | | ????????# ! # @ %#????????????????????? | | ????##### # #??????????""????????? | | ????# # ###xx;#########??? ???????? | | ????# g % #??""""???????? | | ????## Hg # """" #????? | | ????# ## g= !]] """" ?????? | | ????# #### #####; %]!# ?????? | | ????# #####??# #????# []] +####+##???? | | ???## # ##????# #????# % | | ???# ###?# #????# * | | #### ?# #????# |! %= | | # ## #????# # ### """ ? | | # # ###??# ###????"""??? | | # #??? ###???????????? | | # # ##???# ##?????????????? | | # # ###### #??????????????? | | # % # # # #??????????????? | | # ## # #??????????????? | | / !! # #??????????????? | | % ! # #??????????????? | | %== # #??????????????? | | ###### ####### [%! # #??????????????? | | ?????###?####### * ###### +??????????????? | | ?????????# # #??????????????? | | ?????????# # / #??????????????? | +----------------------------------------------------+ Best States ------------- Heat Dissipation 42 Energy Generation 14 Energy Capacity 280 Matter Stores 300 Matter Capacity 300 Sight Range 16 Terrain Scan Density 10 ECM Strength 1 Utility Shielding 33 Evasion (%) 55 Item Schematics ----------------- Lrg. Storage Unit | -9/Materials | Scanalyzed Robot Schematics ------------------ None Fabricated ------------ Nothing Alien Tech Used ----------------- None Achievements -------------- None Challenges ------------ None Game ------ Seed NovaNovaAccelerator Manual? 0 Play Time 00:25:16 Cumulative 10.8 hours Start 2023.10.01 @ 21:58:21 End 2023.10.01 @ 22:26:52 Sessions 1 Manual Loads 0 Difficulty Rogue Special Mode None Game No. 22 Rogue 19 Adventurer 3 Explorer 0 Win Type - Total 0 Types 0/0/0/0/0/0/0/0/0 Lore% 6 Gallery% 23 Achievement% 18 Wizard Run 0 Options --------- ASCII 0 Keyboard 0 Movement Mouse Keybinds 0 Fullscreen 2 Font 18/SmallcapsGlow Map View 76x50 Tactical HUD 1 Map Filters NONE Filters NONE Steam 1 RUN: 46f92e05-541c-48e3-8820-885083425ffc